bitfinex-derivatives/quotes_ETHF0:USTF0_20240924
["timestamp","ask_amount","ask_price","bid_price","bid_amount"]
[1727163969376,0.37784,2646.8,2646.7,1.23]
[1727163969670,1.52002,2646.9,2646.7,1.23]
[1727163970263,1.52002,2646.9,2646.5,1.13927]
[1727163970264,0.7662,2646.9,2646.8,2.65]
[1727163970466,0.265,2647.4,2646.8,6.86117421]
[1727163970674,3.4728,2647.7,2647.3,2.65]
[1727163970865,3.2078,2647.7,2647.6,2.65]
[1727163971169,0.3708,2647.8,2647.6,2.65]
[1727163971573,0.3708,2647.8,2647.5,22.7]
[1727163971574,3.5786,2647.8,2647.5,22.7]
[1727163971968,0.37771,2647.6,2647.5,22.7]
[1727163972766,12.4268,2647.6,2646.9,0.088]
[1727163972969,3.2078,2647.0,2646.7,3.40634]
[1727163973174,3.2078,2647.0,2646.8,22.7]
[1727163973368,3.96796,2647.3,2646.8,26.71011626]
[1727163973675,3.5902,2647.3,2646.9,2.65]
[1727163974069,0.3824,2647.3,2647.0,4.18377529]
[1727163974774,0.3824,2647.3,2647.1,2.65]
[1727163976583,0.76017,2647.3,2646.8,22.7]
[1727163976781,0.3824,2647.3,2646.8,22.7]
[1727163977279,3.2078,2647.1,2646.8,22.7]
[1727163977776,0.37778,2647.2,2646.8,22.7]
[1727163978178,0.37778,2647.2,2646.9,0.3694]
[1727163978577,0.3824,2647.3,2646.9,0.3694]
[1727163978780,3.2078,2647.2,2646.9,0.3694]
[1727163978977,0.37779,2647.1,2646.9,0.3694]
[1727163979280,3.2078,2647.2,2646.8,22.7]
[1727163979580,0.3824,2647.3,2646.6,0.3734]
[1727163979581,3.2078,2646.9,2646.6,0.3734]
[1727163979780,0.37782,2646.9,2646.6,0.3734]
[1727163980077,3.98162,2646.9,2646.6,23.0734]
[1727163980672,3.98162,2646.9,2646.8,2.65]
[1727163980673,3.2078,2646.9,2646.8,2.65]
[1727163980979,0.396,2647.2,2646.9,0.37781]
[1727163981179,0.396,2647.2,2647.1,2.65]
[1727163981679,0.3947,2647.4,2647.1,6.80538]
[1727163981879,3.58552,2647.6,2647.3,2.65]
[1727163981880,0.396,2647.6,2647.3,2.65]
[1727163982076,0.396,2647.6,2647.4,0.3734]
[1727163982674,3.6025,2647.7,2647.5,2.65]
[1727163982876,0.37767,2647.9,2647.5,3.042]
[1727163984080,1.52166,2648.0,2647.5,3.41972]
[1727163984278,3.2078,2648.1,2647.5,3.042]
[1727163984871,0.37766,2648.0,2647.5,3.41973]
[1727163985074,0.37768,2647.9,2647.5,0.392]
[1727163985276,3.58549,2647.8,2647.5,0.392]
[1727163985481,0.3777,2647.7,2647.6,22.7]
[1727163986190,3.58549,2647.8,2647.5,0.392]
[1727163986376,3.2078,2647.8,2647.5,0.392]
[1727163986579,3.58549,2647.8,2647.5,0.392]
[1727163986884,3.58549,2647.8,2647.5,23.092]
[1727163987977,3.2078,2647.8,2647.5,0.392]
[1727163988174,0.37771,2647.7,2647.5,0.392]
[1727163988586,3.58549,2647.8,2647.5,0.76973]
[1727163989284,0.3777,2647.7,2647.5,0.392]
[1727163989477,3.58549,2647.8,2647.5,0.76972]
[1727163990176,3.58549,2647.8,2647.5,0.392]
[1727163990587,0.37769,2647.8,2647.5,0.392]
[1727163990880,0.3777,2647.7,2647.5,0.392]
[1727163991187,0.3777,2647.8,2647.5,0.392]
[1727163991380,0.37769,2647.8,2647.5,0.76972]
[1727163991795,3.5992,2647.9,2647.6,0.37771]
[1727163992083,3.5992,2647.9,2647.6,0.73981]
[1727163992282,3.97687,2647.9,2647.6,0.73981]
[1727163992891,3.5992,2647.9,2647.6,0.73981]
[1727163993076,3.2078,2647.9,2647.7,0.37769]
[1727163993483,3.2078,2647.9,2647.6,3.0121]
[1727163993484,3.2078,2647.9,2647.8,0.3717]
[1727163993684,3.2078,2647.9,2647.8,4.37051653]
[1727163993984,3.2078,2647.9,2647.8,0.3717]
[1727163994194,3.58547,2647.9,2647.8,0.3717]
[1727163994502,3.2078,2647.9,2647.8,0.3717]
[1727163994791,3.58547,2647.9,2647.8,0.3717]
[1727163997091,0.3777,2647.8,2647.5,0.392]
[1727163997402,0.3777,2647.8,2647.6,0.37771]
[1727163997584,0.3777,2647.8,2647.6,0.76911]
[1727163997887,3.6049,2648.2,2647.6,0.3914]
[1727163997888,0.3777,2647.7,2647.6,0.3914]
[1727163998088,0.94415,2648.0,2647.6,0.76911]
[1727163998089,0.37769,2647.8,2647.6,0.76911]
[1727163999185,0.37773,2647.5,2647.4,22.7]
[1727163999491,0.37773,2647.5,2647.3,0.76915]
[1727163999886,1.72426,2647.7,2647.3,8.47400614]
[1727163999887,0.37774,2647.4,2647.3,8.47400614]
[1727164000082,0.37774,2647.4,2647.3,4.69640614]
[1727164000393,0.37774,2647.5,2647.3,31.55176614]
[1727164000589,0.37774,2647.4,2647.3,27.39640614]
[1727164000985,0.37774,2647.4,2647.3,31.17400614]
[1727164001582,0.37774,2647.4,2647.3,27.39640614]
[1727164003292,0.37774,2647.4,2647.3,23.0914]
[1727164003481,0.37779,2647.1,2646.9,0.7329]
[1727164003686,0.37779,2647.1,2646.9,1.11071]
[1727164003987,0.37779,2647.1,2647.0,22.7]
[1727164004393,3.58558,2647.2,2647.0,23.07779]
[1727164004693,3.2078,2647.2,2647.0,23.0778]
[1727164004883,3.58558,2647.2,2647.0,23.0778]
[1727164005084,3.58558,2647.2,2647.0,22.7]
[1727164005487,3.58558,2647.2,2647.0,23.0778]
[1727164005693,0.37779,2647.1,2647.0,22.7]
[1727164006294,3.2078,2647.2,2647.0,22.7]
[1727164006492,1.32226,2647.1,2647.0,22.7]
[1727164006692,0.37784,2646.7,2646.6,0.3609]
[1727164007196,0.37784,2646.7,2646.6,22.7]
[1727164007197,3.58564,2646.7,2646.6,22.7]
[1727164007386,3.97674,2646.7,2646.6,22.7]
[1727164007588,0.37782,2646.9,2646.6,23.07786]
[1727164007796,0.37782,2646.9,2646.8,2.65]
[1727164007993,3.58562,2646.9,2646.8,2.65]
[1727164009389,0.37782,2646.9,2646.8,2.65]
[1727164009990,3.58562,2646.9,2646.8,2.65]
[1727164012592,3.2078,2646.9,2646.8,2.65]
[1727164012794,0.7411,2647.1,2646.8,7.17142]
[1727164012795,0.37779,2647.1,2646.8,7.17142]
[1727164012996,0.37779,2647.1,2647.0,2.65]
[1727164013504,3.58558,2647.2,2647.0,2.65]
[1727164013704,0.37779,2647.1,2647.0,2.65]
[1727164014200,3.2078,2647.2,2647.0,2.65]
[1727164014590,0.37775,2647.4,2647.1,0.3958]
[1727164015000,0.37777,2647.2,2647.1,0.3958]
[1727164015695,0.37777,2647.3,2647.1,0.3958]
[1727164017698,0.7669,2647.5,2647.1,0.3958]
[1727164018497,0.37774,2647.4,2647.1,0.3958]
[1727164018702,0.37776,2647.3,2647.1,0.3958]
[1727164019001,0.37775,2647.4,2647.1,0.3958]
[1727164019797,0.7669,2647.5,2647.3,0.37776]
[1727164019998,1.14463,2647.5,2647.2,7.74281352]
[1727164020199,1.14464,2647.5,2647.2,7.73395352]
[1727164021105,0.7669,2647.5,2647.2,9.08828932]
[1727164021496,0.7669,2647.5,2647.2,8.11172352]
[1727164022002,1.14463,2647.5,2647.2,7.73395352]
[1727164022501,1.14463,2647.5,2647.2,8.71051932]
[1727164023701,1.14464,2647.5,2647.2,5.08395352]
[1727164024500,0.37777,2647.2,2647.1,0.3958]
[1727164024704,0.37781,2646.9,2646.8,0.9765658]
[1727164025001,3.2078,2646.9,2646.6,22.7]
[1727164025205,0.37784,2646.7,2646.6,22.7]
[1727164025597,0.37784,2646.7,2646.4,1.7527658]
[1727164025598,0.37787,2646.5,2646.4,1.7527658]
[1727164025900,0.37787,2646.5,2646.4,2.3434421]
[1727164026103,0.37787,2646.5,2646.4,24.4527658]
[1727164026605,0.37787,2646.5,2646.4,23.4762]
[1727164027110,0.37787,2646.5,2646.4,22.7]
[1727164027405,0.37787,2646.5,2646.1,1.3544858]
[1727164027406,0.37791,2646.3,2646.1,0.9765658]
[1727164027706,6.2455,2646.6,2646.1,0.37793]
[1727164027707,0.3779,2646.4,2646.1,0.37793]
[1727164027909,0.3779,2646.3,2646.2,22.7]
[1727164028109,0.37789,2646.4,2646.2,22.7]
[1727164028699,0.37788,2646.5,2646.2,23.07791]
[1727164028900,3.97336,2646.6,2646.3,0.37789]
[1727164029208,3.97336,2646.6,2646.2,22.7]
[1727164029209,0.37788,2646.5,2646.2,22.7]
[1727164029399,0.37788,2646.5,2646.2,23.07791]
[1727164030213,3.97336,2646.6,2646.3,0.3779]
[1727164030710,0.37787,2646.5,2646.2,22.7]
[1727164031411,3.97337,2646.6,2646.2,23.07791]
[1727164031609,0.37787,2646.5,2646.2,23.07791]
[1727164031811,3.97336,2646.6,2646.2,23.07791]
[1727164032004,0.37787,2646.5,2646.2,23.07791]
[1727164032204,0.37787,2646.5,2646.2,22.7]
[1727164032705,3.97336,2646.6,2646.2,23.07791]
[1727164033300,0.37787,2646.5,2646.2,22.7]
[1727164033602,3.5955,2646.6,2646.2,22.7]
[1727164033798,6.2455,2646.6,2646.2,22.7]
[1727164034400,0.3779,2646.3,2646.2,22.7]
[1727164034604,3.5955,2646.6,2646.2,22.7]
[1727164034808,3.2078,2646.6,2646.5,2.65]
[1727164035010,3.5828,2646.8,2646.5,2.65]
[1727164035213,3.105,2647.2,2646.7,3.02784]
[1727164035214,0.37779,2647.1,2646.7,3.02784]
[1727164035907,0.37779,2647.1,2646.8,4.22913725]
[1727164036313,3.966,2647.2,2646.9,0.37781]
[1727164036518,3.58554,2647.5,2647.1,2.65]
[1727164036716,3.58554,2647.5,2647.2,1.1518]
[1727164036914,3.2078,2647.5,2647.2,1.1518]
[1727164037114,3.2078,2647.5,2647.3,25.35]
[1727164037317,3.2078,2647.5,2647.3,29.70760411]
[1727164037523,3.2078,2647.5,2647.3,27.05760411]
[1727164038121,3.58554,2647.5,2647.3,22.7]
[1727164038726,3.2078,2647.5,2647.3,22.7]
[1727164039523,3.2078,2647.5,2647.3,25.72775]
[1727164039724,3.2078,2647.8,2647.4,0.37774]
[1727164039930,3.2078,2647.8,2647.5,3.02772]
[1727164040527,3.2078,2647.8,2647.5,2.65]
[1727164041329,0.3968,2648.0,2647.6,0.3777]
[1727164041632,0.77446,2648.0,2647.7,0.7862]
[1727164042330,3.58548,2647.9,2647.7,0.7862]
[1727164042520,3.58548,2647.9,2647.8,22.7]
[1727164043329,0.37768,2647.9,2647.8,22.7]
[1727164043533,3.58548,2647.9,2647.8,22.7]
[1727164044630,0.37769,2647.8,2647.7,0.3923]
[1727164044830,0.37771,2647.7,2647.4,0.37774]
[1727164045026,0.37772,2647.6,2647.5,22.7]
[1727164045323,0.7645,2647.8,2647.5,22.7]
[1727164045724,0.37771,2647.7,2647.5,22.7]
[1727164046836,3.58551,2647.6,2647.5,22.7]
[1727164049733,3.58551,2647.6,2647.4,0.3857]
[1727164050132,3.58551,2647.6,2647.4,23.0857]
[1727164050335,3.2078,2647.6,2647.4,23.0857]
[1727164050732,3.2078,2647.6,2647.4,23.46344]
[1727164051627,3.2078,2647.6,2647.4,23.0857]
[1727164051830,3.2078,2647.6,2647.4,23.46344]
[1727164052134,3.58551,2647.6,2647.4,23.0857]
[1727164052435,0.37773,2647.5,2647.4,23.0857]
[1727164052637,0.37773,2647.5,2647.4,0.3857]
[1727164052837,0.37774,2647.4,2647.3,0.3808]
[1727164053040,0.75784,2647.5,2647.3,23.0808]
[1727164053243,0.7645,2647.8,2647.3,23.0808]
[1727164053540,3.58552,2647.6,2647.3,23.0808]
[1727164054141,0.37773,2647.5,2647.3,23.0808]
[1727164055342,3.2078,2647.6,2647.3,23.0808]
[1727164055543,0.37774,2647.4,2647.3,22.7]
[1727164056537,0.37774,2647.5,2647.3,22.7]
[1727164057452,0.37774,2647.4,2647.3,22.7]
[1727164058540,0.37773,2647.5,2647.3,22.7]
[1727164061146,0.37773,2647.5,2647.3,23.07776]
[1727164061448,0.37773,2647.5,2647.3,22.7]
[1727164063050,3.2078,2647.7,2647.3,25.35]
[1727164063245,0.37771,2647.7,2647.4,0.74163]
[1727164063448,0.37772,2647.6,2647.4,0.3639]
[1727164064451,0.7645,2647.8,2647.4,0.3639]
[1727164064452,0.37773,2647.5,2647.4,0.3639]
[1727164064654,0.37774,2647.4,2647.3,22.7]
[1727164064955,0.37774,2647.5,2647.3,22.7]
[1727164065152,0.37774,2647.4,2647.3,22.7]
[1727164066552,0.37777,2647.2,2647.1,0.3758]
[1727164066756,0.37777,2647.2,2646.8,1.4423858]
[1727164066757,0.94445,2647.2,2646.8,0.3816]
[1727164067057,0.37781,2646.9,2646.8,0.3816]
[1727164067446,0.37781,2646.9,2646.8,23.0816]
[1727164068849,3.2078,2647.1,2646.8,23.0816]
[1727164069152,0.37781,2647.0,2646.8,23.0816]
[1727164069553,0.37781,2646.9,2646.8,23.0816]
[1727164071456,0.37781,2646.9,2646.8,22.7]
[1727164071656,0.37783,2646.8,2646.7,0.3907]
[1727164071850,0.37783,2646.8,2646.5,0.9328835]
[1727164071851,0.37786,2646.6,2646.5,0.9328835]
[1727164072157,0.37786,2646.6,2646.5,23.6328835]
[1727164074063,0.37786,2646.6,2646.5,22.7]
[1727164074957,0.7721,2646.7,2646.5,22.7]
[1727164075155,0.37786,2646.6,2646.5,22.7]
[1727164077165,3.98013,2646.8,2646.5,23.07787]
[1727164077467,0.37785,2646.7,2646.5,22.7]
[1727164078664,3.98014,2646.8,2646.5,23.07786]
[1727164079262,0.37784,2646.7,2646.5,22.7]
[1727164079463,3.6023,2646.8,2646.5,23.07787]
[1727164079464,3.58563,2646.8,2646.5,23.07787]
[1727164079858,0.37785,2646.7,2646.5,22.7]
[1727164080267,3.58564,2646.8,2646.5,22.7]
[1727164080567,3.2078,2646.8,2646.5,23.07786]
[1727164080764,1.50571,2647.0,2646.6,3.4298]
[1727164080966,1.50571,2647.0,2646.7,0.3963]
[1727164081264,1.50571,2647.0,2646.7,0.77414]
[1727164081965,0.37782,2646.9,2646.7,0.3963]
[1727164082167,1.1279,2647.0,2646.7,0.3963]
[1727164082368,0.37781,2646.9,2646.7,0.3963]
[1727164083364,1.1279,2647.0,2646.7,0.3963]
[1727164083570,1.50571,2647.0,2646.7,0.3963]
[1727164083869,0.37781,2646.9,2646.7,0.3963]
[1727164085274,1.1279,2647.0,2646.7,0.77414]
[1727164085470,1.5057,2647.0,2646.7,0.77414]
[1727164085669,1.5057,2647.0,2646.7,0.3963]
[1727164086069,1.5057,2647.0,2646.7,0.77414]
[1727164086270,1.5057,2647.0,2646.7,0.3963]
[1727164086465,1.5057,2647.0,2646.7,0.77413]
[1727164086879,1.5057,2647.0,2646.7,0.3963]
[1727164087767,1.5057,2647.0,2646.7,0.77414]
[1727164088462,1.1279,2647.0,2646.7,0.77414]
[1727164088673,1.1279,2647.0,2646.8,0.37783]
[1727164088869,1.1279,2647.0,2646.7,0.3963]
[1727164089075,1.5057,2647.0,2646.7,0.77413]
[1727164089274,0.37783,2646.8,2646.7,0.3963]
[1727164090174,0.37782,2646.9,2646.7,0.3963]
[1727164090579,0.37783,2646.8,2646.7,0.3963]
[1727164091376,0.37782,2646.9,2646.7,0.3963]
[1727164091678,3.58562,2646.9,2646.7,0.3963]
[1727164092776,0.37783,2646.8,2646.7,0.3963]
[1727164093779,4.15236,2646.9,2646.5,23.6765658]
[1727164093969,4.15236,2646.9,2646.5,23.0774]
[1727164094172,0.37786,2646.6,2646.5,24.0539658]
[1727164094367,0.37785,2646.7,2646.5,23.45527]
[1727164094575,0.37785,2646.7,2646.5,23.0774]
[1727164094969,0.37785,2646.7,2646.5,23.45527]
[1727164095171,4.15236,2646.9,2646.5,23.45527]
[1727164095172,0.37786,2646.6,2646.5,23.0774]
[1727164095780,0.37786,2646.6,2646.5,22.7]
[1727164095781,10.01406,2646.6,2646.5,22.7]
[1727164096083,0.3779,2646.4,2646.2,0.9765658]
[1727164096278,0.3779,2646.4,2646.2,1.3544758]
[1727164096577,0.3779,2646.4,2646.3,22.7]
[1727164096883,1.48558,2646.5,2646.3,22.7]
[1727164097075,0.37789,2646.4,2646.3,22.7]
[1727164098473,1.1077,2646.5,2646.3,22.7]
[1727164098474,1.48558,2646.5,2646.3,22.7]
[1727164098674,2.0524,2646.5,2646.1,1.3719658]
[1727164098876,3.58571,2646.3,2646.1,0.3954]
[1727164099383,3.58571,2646.3,2646.2,22.7]
[1727164104275,3.2078,2646.3,2646.2,22.7]
[1727164104477,3.5857,2646.3,2646.2,22.7]
[1727164107980,8.30966,2646.3,2646.2,22.7]
[1727164108377,0.37794,2646.1,2645.9,0.37795]
[1727164108579,0.76105,2646.0,2645.9,0.37796]
[1727164108779,1.15225,2646.0,2645.9,0.37796]
[1727164108981,1.15225,2646.0,2645.9,22.7]
[1727164110788,1.15225,2646.0,2645.9,24.26737063]
[1727164110789,1.15224,2646.0,2645.9,24.26737063]
[1727164111183,1.15224,2646.0,2645.9,22.7]
[1727164111377,1.15224,2646.0,2645.9,23.2908039]
[1727164111688,1.15224,2646.0,2645.9,24.2673697]
[1727164111980,0.7743,2646.0,2645.9,23.2908039]
[1727164112185,0.7743,2646.0,2645.9,22.7]
[1727164112580,1.15224,2646.0,2645.9,23.88161402]
[1727164114285,1.15224,2646.0,2645.9,23.29080761]
[1727164114485,1.15224,2646.0,2645.9,22.7]
[1727164116091,0.7743,2646.0,2645.9,22.7]
[1727164116994,1.15224,2646.0,2645.9,22.7]
[1727164118085,4.36004,2646.0,2645.9,22.7]
[1727164119586,7.01004,2646.0,2645.9,22.7]
[1727164119786,3.9821,2646.0,2645.9,22.7]
[1727164120192,3.9821,2646.0,2645.9,23.07796]
[1727164120393,3.2078,2646.0,2645.9,23.07796]
[1727164121293,3.58571,2646.3,2645.9,22.7]
[1727164121496,0.77659,2646.4,2646.1,0.37792]
[1727164121709,3.2078,2646.6,2646.3,1.23]
[1727164121893,3.58566,2646.6,2646.4,0.3792]
[1727164122087,3.2078,2646.6,2646.4,0.3792]
[1727164122489,0.37787,2646.5,2646.4,0.3792]
[1727164122688,3.58567,2646.6,2646.4,0.3792]
[1727164122885,0.37787,2646.5,2646.4,0.3792]
[1727164123098,3.2078,2646.6,2646.3,22.7]
[1727164123296,0.37788,2646.5,2646.3,22.7]
[1727164124593,3.58568,2646.5,2646.3,22.7]
[1727164127895,0.37789,2646.4,2646.3,22.7]
[1727164130489,9.7784,2646.4,2645.8,0.9765658]
[1727164130688,0.37796,2645.9,2645.8,0.3642]
[1727164131002,3.02796,2645.9,2645.8,23.0642]
[1727164131204,3.02796,2645.9,2645.7,0.9765658]
[1727164131205,0.37797,2645.8,2645.7,0.9765658]
[1727164131499,3.7938,2645.9,2645.7,1.93159447]
[1727164131702,0.3725,2645.9,2645.8,22.7]
[1727164132001,3.58575,2646.0,2645.8,22.7]
[1727164132302,3.58575,2646.0,2645.9,0.3608]
[1727164132502,0.37793,2646.1,2645.9,0.73876]
[1727164133000,0.37793,2646.1,2645.9,0.3608]
[1727164133200,0.37794,2646.1,2645.9,0.3608]
[1727164134597,0.37794,2646.0,2645.9,0.3608]
[1727164135098,0.37794,2646.0,2645.9,0.95161793]
[1727164136607,0.37794,2646.0,2645.9,0.3608]
[1727164136799,0.37794,2646.0,2645.9,0.95161953]
[1727164137407,0.37794,2646.0,2645.9,1.92818533]
[1727164137803,0.37794,2646.0,2645.9,0.95161953]
[1727164138502,0.37794,2646.0,2645.9,1.92818533]
[1727164140911,0.37794,2646.0,2645.9,3.08317835]
[1727164141111,0.37794,2646.0,2645.9,3.0831765]
[1727164141312,0.37794,2646.0,2645.9,2.1066107]
[1727164141507,0.37794,2646.0,2645.9,3.61396314]
[1727164141709,2.30467659,2646.0,2645.9,1.58027049]
[1727164142208,0.9449,2645.9,2645.7,1.35365281]
[1727164142413,4.95515027,2645.8,2645.6,0.98945281]
[1727164142612,0.378,2645.6,2645.5,1.34945281]
[1727164142916,2.31356027,2645.6,2645.5,0.95094014]
[1727164143217,2.31369905,2645.6,2645.5,0.95094034]
[1727164144116,0.37803,2645.4,2645.3,23.4697]
[1727164144312,3.58583,2645.4,2645.3,24.66023055]
[1727164144514,3.58583,2645.4,2645.3,26.19380189]
[1727164145010,3.58583,2645.4,2645.3,25.03827055]
[1727164145011,3.2078,2645.4,2645.3,25.03827055]
[1727164145219,0.76202,2645.5,2645.3,25.20382238]
[1727164145401,0.76202,2645.5,2645.4,0.59096128]
[1727164146312,0.37803,2645.4,2645.3,24.06879836]
[1727164146514,6.59613,2645.4,2645.3,24.65976977]
[1727164146715,7.91611,2645.4,2645.3,23.0793]
[1727164147510,7.91611,2645.4,2645.1,0.98949836]
[1727164147511,0.37806,2645.2,2645.1,0.98949836]
[1727164147712,3.02806,2645.2,2645.1,0.97949099]
[1727164148016,0.37809,2645.0,2644.9,0.98949836]
[1727164148217,0.37809,2645.0,2644.9,1.96902011]
[1727164148516,0.37809,2645.0,2644.9,23.67952175]
[1727164148517,3.02809,2645.0,2644.9,23.67952175]
[1727164148816,3.02809,2645.0,2644.9,23.0885]
[1727164151419,4.36131,2645.0,2644.9,23.0885]
[1727164151614,3.78189,2645.0,2644.9,23.0885]
[1727164156815,0.37809,2645.0,2644.9,23.4666]
[1727164157526,3.58588,2645.1,2644.9,23.46659]
[1727164157822,0.37809,2645.0,2644.9,23.46659]
[1727164158324,1.60809,2645.0,2644.9,23.0885]
[1727164159431,1.23,2645.0,2644.9,23.0885]
[1727164159923,4.4378,2645.0,2644.9,23.0885]
[1727164160629,4.4378,2645.0,2644.9,23.4666]
[1727164161918,4.81589,2645.0,2644.9,23.0885]
[1727164162826,4.4378,2645.0,2644.9,23.0885]
[1727164163025,4.4378,2645.0,2644.9,23.4666]
[1727164163824,1.23,2645.0,2644.9,23.4666]
[1727164164120,4.4378,2645.0,2644.9,23.4666]
[1727164164326,1.23,2645.0,2644.9,23.4666]
[1727164164528,4.4378,2645.0,2644.9,23.4666]
[1727164164917,4.4378,2645.0,2644.9,23.0885]
[1727164166223,3.97255,2645.3,2645.1,0.37807]
[1727164166416,5.20255,2645.3,2645.1,0.37807]
[1727164166619,5.20255,2645.3,2645.2,0.3708]
[1727164166818,4.4378,2645.3,2645.2,23.0708]
[1727164167020,4.81584,2645.3,2645.2,23.0708]
[1727164167725,4.4378,2645.3,2645.2,23.0708]
[1727164168021,4.81584,2645.3,2645.2,23.0708]
[1727164169123,4.81584,2645.3,2645.2,22.7]
[1727164170024,0.37807,2645.2,2645.0,0.73988]
[1727164170223,1.23,2645.1,2645.0,0.37808]
[1727164170422,1.23,2645.1,2645.0,23.07808]
[1727164172927,1.60807,2645.1,2645.0,22.7]
[1727164173125,1.60807,2645.1,2644.9,0.3885]
[1727164173126,0.37809,2645.0,2644.9,0.3885]
[1727164173322,3.96039,2645.0,2644.9,0.3885]
[1727164173524,4.32419,2645.0,2644.9,23.0885]
[1727164174824,1.11639,2645.0,2644.9,23.0885]
[1727164175224,4.32419,2645.0,2644.9,0.3885]
[1727164176524,0.3781,2644.9,2644.8,23.0953]
[1727164176734,1.6081,2644.9,2644.8,23.0953]
[1727164178728,1.23,2644.9,2644.8,23.0953]
[1727164179735,1.23,2644.9,2644.8,23.47341]
[1727164180233,5.55419,2645.0,2644.8,23.47341]
[1727164180629,2.34639,2645.0,2644.8,23.47341]
[1727164180937,3.2078,2644.9,2644.8,23.0953]
[1727164181128,3.5859,2644.9,2644.8,23.0953]
[1727164181321,3.2078,2644.9,2644.8,23.0953]
[1727164181531,3.5859,2644.9,2644.8,23.0953]
[1727164181829,2.3464,2645.0,2644.8,23.68635723]
[1727164182026,2.3464,2645.0,2644.8,23.0953]
[1727164182734,2.3464,2645.0,2644.8,24.46290836]
[1727164182933,1.23,2645.0,2644.8,24.46290836]
[1727164183431,1.23,2645.0,2644.9,0.96913356]
[1727164183936,1.23,2645.0,2644.9,0.59103356]
[1727164184439,1.23,2645.0,2644.9,1.58053192]
[1727164184640,1.60809,2645.0,2644.9,1.58053192]
[1727164184933,4.81589,2645.0,2644.9,0.59103356]
[1727164185635,4.81589,2645.0,2644.9,1.58053192]
[1727164186533,4.4378,2645.0,2644.9,1.58055523]
[1727164186735,4.81589,2645.0,2644.9,1.58055523]
[1727164187326,0.99056794,2645.1,2644.9,5.52875495]
[1727164187530,4.19836794,2645.3,2645.2,0.37806]
[1727164187732,4.4378,2645.3,2645.2,1.58187848]
[1727164188032,4.4378,2645.3,2645.2,2.73299571]
[1727164188238,5.42836794,2645.3,2645.2,3.20667551]
[1727164188436,5.42836794,2645.3,2645.2,1.15150903]
[1727164188732,5.42836794,2645.3,2645.2,2.4331445]
[1727164188938,5.42836794,2645.3,2645.2,5.07087269]
[1727164189139,2.22056794,2645.3,2645.2,5.07087269]
[1727164189437,2.22056794,2645.3,2645.2,4.69281269]
[1727164190333,2.22056794,2645.3,2645.2,2.63772819]
[1727164190531,2.22056794,2645.3,2645.2,4.69285645]
[1727164190731,2.22056794,2645.3,2645.2,5.07091645]
[1727164192737,2.22056794,2645.3,2645.2,4.69285645]
[1727164193137,2.22056794,2645.3,2645.2,5.07091645]
[1727164194327,2.22056794,2645.3,2645.2,3.53440363]
[1727164194535,2.22056794,2645.3,2645.2,5.07092815]
[1727164194729,2.22056794,2645.3,2645.2,4.55231271]
[1727164194929,2.22056794,2645.3,2645.2,4.12544942]
[1727164195133,2.22056794,2645.3,2645.2,5.07099578]
[1727164195839,2.22056794,2645.3,2645.2,4.69293578]
[1727164196443,2.59860794,2645.3,2645.2,4.69293578]
[1727164196739,4.02596489,2645.3,2645.2,1.58243923]
[1727164197944,2.55315,2645.3,2645.2,0.59096647]
[1727164198536,5.76095,2645.3,2645.2,0.59096647]
[1727164198936,7.24766892,2645.3,2645.2,1.58243923]
[1727164199743,5.76095,2645.3,2645.2,1.58243923]
[1727164200249,5.76095,2645.3,2645.2,0.59096647]
[1727164200645,0.37806,2645.2,2645.1,0.99147276]
[1727164200838,3.09479652,2645.2,2645.1,4.1987263]
[1727164201037,1.60806,2645.2,2645.1,3.2072456]
[1727164201242,3.09479652,2645.2,2645.1,4.1987721]
[1727164201648,1.48673652,2645.2,2645.1,3.5853156]
[1727164201947,2.22121556,2645.2,2645.1,5.07154801]
[1727164202147,2.59927556,2645.2,2645.1,4.69347801]
[1727164202544,3.09479652,2645.2,2645.1,4.19879666]
[1727164202744,3.09479652,2645.2,2645.1,3.25316151]
[1727164202950,3.09479652,2645.2,2645.1,2.73447357]
[1727164203344,3.09479652,2645.2,2645.1,3.25318986]
[1727164204155,3.09479652,2645.2,2645.1,2.73448013]
[1727164204750,3.09479652,2645.2,2645.1,3.25320259]
[1727164205348,3.09479652,2645.2,2645.1,3.2532748]
[1727164205551,3.09479652,2645.2,2645.1,1.58257959]
[1727164208448,3.09479652,2645.2,2645.1,2.73461246]
[1727164208650,3.09479652,2645.2,2645.1,3.25335724]
[1727164208847,3.09479652,2645.2,2645.1,1.58257959]
[1727164209041,3.09479652,2645.2,2645.1,3.25335487]
[1727164209242,3.09479652,2645.2,2645.1,1.58257959]
[1727164210544,4.03994652,2645.2,2645.1,1.58257959]
[1727164210744,3.7808,2645.1,2644.4,0.4662]
[1727164210944,3.7808,2645.1,2644.3,0.56016074]
[1727164210945,1.32361,2644.4,2644.3,0.47216074]
[1727164211140,0.3782,2644.2,2644.1,0.47216625]
[1727164211345,0.37823,2644.0,2643.9,0.3683]
[1727164211548,2.5978399,2644.0,2643.9,0.3683]
[1727164211747,2.2196099,2644.0,2643.9,0.3683]
[1727164211942,6.3802399,2644.0,2643.9,0.3683]
[1727164212144,0.37824,2643.9,2643.7,0.37827]
[1727164212450,3.58604,2643.9,2643.7,0.37827]
[1727164212753,3.2078,2643.9,2643.7,0.37827]
[1727164213148,3.2078,2643.9,2643.8,6.17546]
[1727164213347,3.2078,2644.3,2643.8,13.46100436]
[1727164213548,3.2078,2644.3,2643.9,1.5983]